[Event "Titled Tuesday Blitz November 08 Late 2022"]
[White "Harvey, Marcus R"]
[Black "Ibarra Jerez, Jose Carlos"]
[WhiteFideId "400092"]
[BlackFideId "2226332"]
[WhiteElo "2457"]
[BlackElo "2638"]
[Result "1/2-1/2"]
[Round "04"]
[TimeControl "180+1"]
[Date "2022.11.08"]
[WhiteClock "0:00:08"]
[BlackClock "0:00:07"]

1. Nf3 {[%clk 0:03:00]}  d6 {[%clk 0:02:58]} 2. d4 {[%clk 0:03:00]}  Nf6 {[%clk 0:02:59]} 3. b3 {[%clk 0:03:00]}  g6 {[%clk 0:02:56]} 4. Bb2 {[%clk 0:03:00]}  Bg7 {[%clk 0:02:57]} 5. g3 {[%clk 0:03:01]}  O-O {[%clk 0:02:56]} 6. Bg2 {[%clk 0:03:01]}  b5 {[%clk 0:02:56]} 7. Nfd2 {[%clk 0:02:44]}  c6 {[%clk 0:02:52]} 8. O-O {[%clk 0:02:43]}  Bb7 {[%clk 0:02:52]} 9. e4 {[%clk 0:02:43]}  Nbd7 {[%clk 0:02:49]} 10. e5 {[%clk 0:02:38]}  dxe5 {[%clk 0:02:48]} 11. dxe5 {[%clk 0:02:39]}  Nd5 {[%clk 0:02:43]} 12. Qe2 {[%clk 0:02:32]}  Qc7 {[%clk 0:02:38]} 13. Re1 {[%clk 0:02:30]}  Nc5 {[%clk 0:02:30]} 14. Nc3 {[%clk 0:02:28]}  Nb4 {[%clk 0:02:24]} 15. Rac1 {[%clk 0:02:15]}  a5 {[%clk 0:02:10]} 16. a3 {[%clk 0:02:13]}  Nba6 {[%clk 0:02:10]} 17. f4 {[%clk 0:02:07]}  Rad8 {[%clk 0:02:07]} 18. Nce4 {[%clk 0:02:05]}  f5 {[%clk 0:01:49]} 19. Ng5 {[%clk 0:02:02]}  h6 {[%clk 0:01:46]} 20. Ngf3 {[%clk 0:02:02]}  Ne6 {[%clk 0:01:45]} 21. Nh4 {[%clk 0:01:52]}  Kh7 {[%clk 0:01:40]} 22. Ndf3 {[%clk 0:01:28]}  Qb6+ {[%clk 0:01:29]} 23. Kh1 {[%clk 0:01:28]}  c5 {[%clk 0:01:29]} 24. Rcd1 {[%clk 0:00:52]}  Be4 {[%clk 0:01:03]} 25. Nxg6 {[%clk 0:00:50]}  Kxg6 {[%clk 0:00:52]} 26. Nh4+ {[%clk 0:00:50]}  Kf7 {[%clk 0:00:52]} 27. Bxe4 {[%clk 0:00:45]}  fxe4 {[%clk 0:00:52]} 28. Qxe4 {[%clk 0:00:37]}  Kg8 {[%clk 0:00:52]} 29. Ng6 {[%clk 0:00:28]}  Rfe8 {[%clk 0:00:48]} 30. h4 {[%clk 0:00:25]}  Nd4 {[%clk 0:00:46]} 31. f5 {[%clk 0:00:20]}  Qc6 {[%clk 0:00:39]} 32. Rxd4 {[%clk 0:00:19]}  Qxe4+ {[%clk 0:00:25]} 33. Rdxe4 {[%clk 0:00:20]}  c4 {[%clk 0:00:18]} 34. bxc4 {[%clk 0:00:19]}  Nc5 {[%clk 0:00:19]} 35. Rg4 {[%clk 0:00:19]}  Kh7 {[%clk 0:00:14]} 36. cxb5 {[%clk 0:00:18]}  Rd2 {[%clk 0:00:14]} 37. Bd4 {[%clk 0:00:13]}  h5 {[%clk 0:00:12]} 38. Rf4 {[%clk 0:00:05]}  Ne6 {[%clk 0:00:13]} 39. fxe6 {[%clk 0:00:03]}  Kxg6 {[%clk 0:00:14]} 40. c4 {[%clk 0:00:03]}  Rd8 {[%clk 0:00:11]} 41. Be3 {[%clk 0:00:03]}  R2d3 {[%clk 0:00:11]} 42. c5 {[%clk 0:00:03]}  Bxe5 {[%clk 0:00:10]} 43. Re4 {[%clk 0:00:04]}  Bf6 {[%clk 0:00:10]} 44. c6 {[%clk 0:00:03]}  Rc3 {[%clk 0:00:10]} 45. Kg2 {[%clk 0:00:02]}  Rd5 {[%clk 0:00:10]} 46. Re2 {[%clk 0:00:02]}  Rxb5 {[%clk 0:00:10]} 47. g4 {[%clk 0:00:02]}  Rxc6 {[%clk 0:00:10]} 48. g5 {[%clk 0:00:02]}  Bg7 {[%clk 0:00:09]} 49. Bd4 {[%clk 0:00:02]}  Rb3 {[%clk 0:00:04]} 50. Bxg7 {[%clk 0:00:02]}  Kxg7 {[%clk 0:00:05]} 51. Rf4 {[%clk 0:00:02]}  Kg6 {[%clk 0:00:05]} 52. Rf7 {[%clk 0:00:03]}  Rxe6 {[%clk 0:00:06]} 53. Rxe6+ {[%clk 0:00:02]}  Kxf7 {[%clk 0:00:06]} 54. Rh6 {[%clk 0:00:03]}  Rxa3 {[%clk 0:00:06]} 55. Rxh5 {[%clk 0:00:03]}  a4 {[%clk 0:00:06]} 56. Rh6 {[%clk 0:00:03]}  Rb3 {[%clk 0:00:06]} 57. Ra6 {[%clk 0:00:04]}  a3 {[%clk 0:00:07]} 58. Kh2 {[%clk 0:00:03]}  e5 {[%clk 0:00:06]} 59. h5 {[%clk 0:00:04]}  e4 {[%clk 0:00:05]} 60. h6 {[%clk 0:00:04]}  Rb5 {[%clk 0:00:05]} 61. h7 {[%clk 0:00:04]}  Kg7 {[%clk 0:00:05]} 62. Ra8 {[%clk 0:00:04]}  Kxh7 {[%clk 0:00:05]} 63. Rxa3 {[%clk 0:00:04]}  Kg6 {[%clk 0:00:05]} 64. Kg3 {[%clk 0:00:04]}  Kxg5 {[%clk 0:00:06]} 65. Ra8 {[%clk 0:00:03]}  Rb3+ {[%clk 0:00:05]} 66. Kf2 {[%clk 0:00:03]}  Rb2+ {[%clk 0:00:06]} 67. Ke3 {[%clk 0:00:03]}  Rb4 {[%clk 0:00:06]} 68. Rf8 {[%clk 0:00:03]}  Kg6 {[%clk 0:00:05]} 69. Rf4 {[%clk 0:00:03]}  Rb3+ {[%clk 0:00:05]} 70. Kxe4 {[%clk 0:00:03]}  Kg5 {[%clk 0:00:05]} 71. Rf5+ {[%clk 0:00:04]}  Kg6 {[%clk 0:00:06]} 72. Rf2 {[%clk 0:00:04]}  Rb4+ {[%clk 0:00:06]} 73. Kf3 {[%clk 0:00:05]}  Kf5 {[%clk 0:00:06]} 74. Kg2+ {[%clk 0:00:06]}  Kg4 {[%clk 0:00:06]} 75. Kf1 {[%clk 0:00:06]}  Kg3 {[%clk 0:00:06]} 76. Rg2+ {[%clk 0:00:07]}  Kh3 {[%clk 0:00:05]} 77. Re2 {[%clk 0:00:07]}  Rb1+ {[%clk 0:00:06]} 78. Kf2 {[%clk 0:00:07]}  Rb3 {[%clk 0:00:06]} 79. Re3+ {[%clk 0:00:07]}  Rxe3 {[%clk 0:00:07]} 80. Kxe3 {[%clk 0:00:08]} 1/2-1/2


[Site "https://www.chess.com"]

[Event "Titled Tuesday Blitz November 08 Late 2022"]
[White "Hristodoulou, Panagiotis"]
[Black "Dudzinski, Pawel"]
[WhiteFideId "4214340"]
[BlackFideId "1117890"]
[WhiteElo "2272"]
[BlackElo "2086"]
[Result "1-0"]
[Round "04"]
[TimeControl "180+1"]
[Date "2022.11.09"]
[WhiteClock "0:00:24"]
[BlackClock "0:00:15"]

1. e4 {[%clk 0:01:58]}  c6 {[%clk 0:02:58]} 2. d4 {[%clk 0:01:53]}  d5 {[%clk 0:02:59]} 3. exd5 {[%clk 0:01:37]}  cxd5 {[%clk 0:03:00]} 4. Bd3 {[%clk 0:01:37]}  Nc6 {[%clk 0:02:59]} 5. c3 {[%clk 0:01:37]}  Nf6 {[%clk 0:02:59]} 6. h3 {[%clk 0:01:30]}  g6 {[%clk 0:02:59]} 7. Nf3 {[%clk 0:01:30]}  Bf5 {[%clk 0:03:00]} 8. Ne5 {[%clk 0:01:30]}  Nxe5 {[%clk 0:02:52]} 9. dxe5 {[%clk 0:01:29]}  Bxd3 {[%clk 0:02:14]} 10. Qxd3 {[%clk 0:01:27]}  Ne4 {[%clk 0:02:15]} 11. Be3 {[%clk 0:01:20]}  a6 {[%clk 0:02:12]} 12. Nd2 {[%clk 0:01:15]}  Nxd2 {[%clk 0:02:11]} 13. Qxd2 {[%clk 0:01:16]}  Bg7 {[%clk 0:02:07]} 14. f4 {[%clk 0:01:12]}  e6 {[%clk 0:02:05]} 15. O-O-O {[%clk 0:01:09]}  Qa5 {[%clk 0:02:00]} 16. Kb1 {[%clk 0:01:09]}  h5 {[%clk 0:02:00]} 17. Qd3 {[%clk 0:01:06]}  Qb5 {[%clk 0:01:39]} 18. Qc2 {[%clk 0:00:52]}  Rc8 {[%clk 0:01:32]} 19. g4 {[%clk 0:00:51]}  Rc4 {[%clk 0:01:27]} 20. Bd4 {[%clk 0:00:51]}  Qd7 {[%clk 0:00:46]} 21. f5 {[%clk 0:00:50]}  exf5 {[%clk 0:00:45]} 22. gxf5 {[%clk 0:00:50]}  Qxf5 {[%clk 0:00:45]} 23. Qxf5 {[%clk 0:00:50]}  gxf5 {[%clk 0:00:46]} 24. Rdf1 {[%clk 0:00:50]}  Rc6 {[%clk 0:00:24]} 25. Rxf5 {[%clk 0:00:49]}  Rch6 {[%clk 0:00:18]} 26. Rhf1 {[%clk 0:00:46]}  O-O {[%clk 0:00:19]} 27. Rg5 {[%clk 0:00:44]}  Kh7 {[%clk 0:00:15]} 28. Rff5 {[%clk 0:00:41]}  h4 {[%clk 0:00:14]} 29. Rg4 {[%clk 0:00:40]}  f6 {[%clk 0:00:13]} 30. exf6 {[%clk 0:00:38]}  Bxf6 {[%clk 0:00:14]} 31. Rgf4 {[%clk 0:00:37]}  Kg7 {[%clk 0:00:13]} 32. Kc2 {[%clk 0:00:31]}  Rg6 {[%clk 0:00:13]} 33. Kb3 {[%clk 0:00:30]}  Rh6 {[%clk 0:00:12]} 34. Kb4 {[%clk 0:00:16]}  b6 {[%clk 0:00:13]} 35. a4 {[%clk 0:00:15]}  Rg6 {[%clk 0:00:12]} 36. a5 {[%clk 0:00:15]}  bxa5+ {[%clk 0:00:12]} 37. Kxa5 {[%clk 0:00:15]}  Rh6 {[%clk 0:00:07]} 38. b4 {[%clk 0:00:15]}  Rg6 {[%clk 0:00:07]} 39. Rxf6 {[%clk 0:00:15]}  Rfxf6 {[%clk 0:00:06]} 40. Rxf6 {[%clk 0:00:15]}  Rxf6 {[%clk 0:00:06]} 41. Bxf6+ {[%clk 0:00:16]}  Kxf6 {[%clk 0:00:07]} 42. Kxa6 {[%clk 0:00:17]}  d4 {[%clk 0:00:07]} 43. cxd4 {[%clk 0:00:16]}  Ke6 {[%clk 0:00:08]} 44. b5 {[%clk 0:00:17]}  Kd5 {[%clk 0:00:09]} 45. b6 {[%clk 0:00:17]}  Ke4 {[%clk 0:00:09]} 46. b7 {[%clk 0:00:18]}  Kf3 {[%clk 0:00:10]} 47. b8=Q {[%clk 0:00:19]}  Kg2 {[%clk 0:00:10]} 48. Qc8 {[%clk 0:00:19]}  Kh2 {[%clk 0:00:10]} 49. Qg4 {[%clk 0:00:20]}  Kh1 {[%clk 0:00:10]} 50. Kb5 {[%clk 0:00:21]}  Kh2 {[%clk 0:00:10]} 51. Kb4 {[%clk 0:00:22]}  Kh1 {[%clk 0:00:11]} 52. Kc3 {[%clk 0:00:22]}  Kh2 {[%clk 0:00:12]} 53. Kd2 {[%clk 0:00:23]}  Kh1 {[%clk 0:00:13]} 54. Ke2 {[%clk 0:00:24]}  Kh2 {[%clk 0:00:14]} 55. Kf2 {[%clk 0:00:24]}  Kh1 {[%clk 0:00:15]} 56. Qg2# {[%clk 0:00:24]} 1-0


[Site "https://www.chess.com"]

[Event "Titled Tuesday Blitz November 08 Late 2022"]
[White "Indjic, Aleksandar"]
[Black "Brown, Andrew"]
[WhiteFideId "911925"]
[BlackFideId "3206513"]
[WhiteElo "2592"]
[BlackElo "2245"]
[Result "1-0"]
[Round "04"]
[TimeControl "180+1"]
[Date "2022.11.08"]
[WhiteClock "0:01:58"]
[BlackClock "0:00:04"]

1. e4 {[%clk 0:03:00]}  g6 {[%clk 0:03:00]} 2. d4 {[%clk 0:02:55]}  Bg7 {[%clk 0:03:00]} 3. c4 {[%clk 0:02:55]}  d6 {[%clk 0:02:59]} 4. Nc3 {[%clk 0:02:55]}  Nd7 {[%clk 0:02:59]} 5. Be3 {[%clk 0:02:54]}  e5 {[%clk 0:02:57]} 6. Nf3 {[%clk 0:02:52]}  exd4 {[%clk 0:02:38]} 7. Nxd4 {[%clk 0:02:51]}  Ngf6 {[%clk 0:02:38]} 8. Be2 {[%clk 0:02:42]}  O-O {[%clk 0:02:37]} 9. Qc2 {[%clk 0:02:42]}  Nc5 {[%clk 0:02:35]} 10. O-O-O {[%clk 0:02:41]}  Ng4 {[%clk 0:02:20]} 11. Bxg4 {[%clk 0:02:39]}  Bxg4 {[%clk 0:02:21]} 12. f3 {[%clk 0:02:39]}  Bd7 {[%clk 0:02:18]} 13. h4 {[%clk 0:02:39]}  a6 {[%clk 0:01:44]} 14. h5 {[%clk 0:02:38]}  b5 {[%clk 0:01:43]} 15. Nde2 {[%clk 0:02:29]}  b4 {[%clk 0:01:16]} 16. Nd5 {[%clk 0:02:28]}  c6 {[%clk 0:00:44]} 17. Nxb4 {[%clk 0:02:26]}  Qa5 {[%clk 0:00:31]} 18. a3 {[%clk 0:02:20]}  Rab8 {[%clk 0:00:25]} 19. hxg6 {[%clk 0:02:17]}  fxg6 {[%clk 0:00:19]} 20. Bd4 {[%clk 0:02:17]}  Rxb4 {[%clk 0:00:16]} 21. axb4 {[%clk 0:02:16]}  Qxb4 {[%clk 0:00:13]} 22. Bxg7 {[%clk 0:02:14]}  Kxg7 {[%clk 0:00:11]} 23. Qc3+ {[%clk 0:02:13]}  Qxc3+ {[%clk 0:00:11]} 24. Nxc3 {[%clk 0:02:13]}  Nb7 {[%clk 0:00:07]} 25. c5 {[%clk 0:02:01]}  Nxc5 {[%clk 0:00:05]} 26. Rxd6 {[%clk 0:02:00]}  Rc8 {[%clk 0:00:04]} 27. b4 {[%clk 0:01:58]} 1-0


[Site "https://www.chess.com"]

[Event "Titled Tuesday Blitz November 08 Late 2022"]
[White "Jimenez Almeida, Luis David"]
[Black "Kopacz, Grzegorz"]
[WhiteFideId "22242244"]
[BlackFideId "1109880"]
[WhiteElo "2158"]
[BlackElo "2037"]
[Result "0-1"]
[Round "04"]
[TimeControl "180+1"]
[Date "2022.11.09"]
[WhiteClock "0:00:07"]
[BlackClock "0:00:14"]

1. e4 {[%clk 0:03:00]}  c5 {[%clk 0:02:59]} 2. Nc3 {[%clk 0:03:00]}  Nc6 {[%clk 0:02:59]} 3. Nge2 {[%clk 0:03:00]}  g6 {[%clk 0:02:59]} 4. g3 {[%clk 0:02:57]}  Bg7 {[%clk 0:02:59]} 5. Bg2 {[%clk 0:02:58]}  d6 {[%clk 0:03:00]} 6. d3 {[%clk 0:02:58]}  e6 {[%clk 0:03:00]} 7. Be3 {[%clk 0:02:58]}  Nge7 {[%clk 0:02:59]} 8. Qd2 {[%clk 0:02:58]}  h5 {[%clk 0:02:55]} 9. h3 {[%clk 0:02:57]}  Rb8 {[%clk 0:02:53]} 10. a4 {[%clk 0:02:56]}  a6 {[%clk 0:02:52]} 11. O-O {[%clk 0:02:53]}  O-O {[%clk 0:02:42]} 12. d4 {[%clk 0:02:52]}  cxd4 {[%clk 0:02:41]} 13. Nxd4 {[%clk 0:02:53]}  Ne5 {[%clk 0:02:34]} 14. b3 {[%clk 0:02:45]}  Qc7 {[%clk 0:02:32]} 15. f4 {[%clk 0:02:41]}  N5c6 {[%clk 0:02:26]} 16. Nde2 {[%clk 0:02:40]}  f5 {[%clk 0:02:18]} 17. Rad1 {[%clk 0:02:37]}  fxe4 {[%clk 0:02:02]} 18. Nxe4 {[%clk 0:02:31]}  d5 {[%clk 0:01:55]} 19. Ng5 {[%clk 0:02:27]}  Nf5 {[%clk 0:01:55]} 20. Bc5 {[%clk 0:02:14]}  Re8 {[%clk 0:01:55]} 21. Bf2 {[%clk 0:02:03]}  Bd7 {[%clk 0:01:37]} 22. Bxd5 {[%clk 0:01:55]}  exd5 {[%clk 0:01:35]} 23. Qxd5+ {[%clk 0:01:56]}  Kh8 {[%clk 0:01:32]} 24. Nf7+ {[%clk 0:01:34]}  Kh7 {[%clk 0:01:32]} 25. Ng5+ {[%clk 0:01:34]}  Kh8 {[%clk 0:01:29]} 26. Qxd7 {[%clk 0:01:30]}  Qxd7 {[%clk 0:01:28]} 27. Rxd7 {[%clk 0:01:31]}  Rxe2 {[%clk 0:01:28]} 28. c4 {[%clk 0:01:20]}  Ncd4 {[%clk 0:01:10]} 29. g4 {[%clk 0:01:14]}  hxg4 {[%clk 0:01:04]} 30. hxg4 {[%clk 0:01:15]}  Ne3 {[%clk 0:00:59]} 31. Bxe3 {[%clk 0:01:05]}  Rxe3 {[%clk 0:00:59]} 32. Kf2 {[%clk 0:01:05]}  Rxb3 {[%clk 0:00:54]} 33. Rh1+ {[%clk 0:00:57]}  Kg8 {[%clk 0:00:54]} 34. Rh7 {[%clk 0:00:57]}  Bf6 {[%clk 0:00:47]} 35. Ne4 {[%clk 0:00:55]}  Rf3+ {[%clk 0:00:39]} 36. Kg2 {[%clk 0:00:52]}  Rxf4 {[%clk 0:00:40]} 37. Nxf6+ {[%clk 0:00:47]}  Rxf6 {[%clk 0:00:41]} 38. Rdg7+ {[%clk 0:00:47]}  Kf8 {[%clk 0:00:41]} 39. Rd7 {[%clk 0:00:48]}  Kg8 {[%clk 0:00:32]} 40. g5 {[%clk 0:00:40]}  Rf5 {[%clk 0:00:25]} 41. Rdg7+ {[%clk 0:00:35]}  Kf8 {[%clk 0:00:25]} 42. Rxg6 {[%clk 0:00:35]}  Re8 {[%clk 0:00:20]} 43. Rf6+ {[%clk 0:00:10]}  Rxf6 {[%clk 0:00:20]} 44. gxf6 {[%clk 0:00:11]}  Re2+ {[%clk 0:00:18]} 45. Kg3 {[%clk 0:00:11]}  Rb2 {[%clk 0:00:19]} 46. Kf4 {[%clk 0:00:12]}  Ne6+ {[%clk 0:00:17]} 47. Ke5 {[%clk 0:00:11]}  Nc5 {[%clk 0:00:17]} 48. Kd6 {[%clk 0:00:10]}  Nxa4 {[%clk 0:00:17]} 49. Ke6 {[%clk 0:00:07]}  Re2+ {[%clk 0:00:17]} 50. Kf5 {[%clk 0:00:08]}  Nc5 {[%clk 0:00:17]} 51. Kg6 {[%clk 0:00:08]}  Rg2+ {[%clk 0:00:16]} 52. Kf5 {[%clk 0:00:08]}  a5 {[%clk 0:00:17]} 53. Rc7 {[%clk 0:00:08]}  Rf2+ {[%clk 0:00:13]} 54. Kg6 {[%clk 0:00:08]}  Rg2+ {[%clk 0:00:12]} 55. Kf5 {[%clk 0:00:09]}  Rg5+ {[%clk 0:00:08]} 56. Kxg5 {[%clk 0:00:03]}  Ne6+ {[%clk 0:00:09]} 57. Kf5 {[%clk 0:00:04]}  Nxc7 {[%clk 0:00:10]} 58. Ke5 {[%clk 0:00:04]}  a4 {[%clk 0:00:09]} 59. Kd4 {[%clk 0:00:05]}  a3 {[%clk 0:00:09]} 60. Kc3 {[%clk 0:00:05]}  Kf7 {[%clk 0:00:10]} 61. Kb3 {[%clk 0:00:05]}  Kxf6 {[%clk 0:00:11]} 62. Kxa3 {[%clk 0:00:06]}  Ke6 {[%clk 0:00:11]} 63. Kb4 {[%clk 0:00:06]}  Kd6 {[%clk 0:00:12]} 64. Ka5 {[%clk 0:00:06]}  Kc5 {[%clk 0:00:12]} 65. Ka4 {[%clk 0:00:07]}  Kxc4 {[%clk 0:00:12]} 66. Ka5 {[%clk 0:00:07]}  Kc5 {[%clk 0:00:13]} 67. Ka4 {[%clk 0:00:07]}  b5+ {[%clk 0:00:13]} 68. Ka5 {[%clk 0:00:07]}  Nd5 {[%clk 0:00:13]} 69. Ka6 {[%clk 0:00:07]}  b4 {[%clk 0:00:14]} 0-1


[Site "https://www.chess.com"]

[Event "Titled Tuesday Blitz November 08 Late 2022"]
[White "Jobava, Baadur"]
[Black "Kozak, Adam"]
[WhiteFideId "13601520"]
[BlackFideId "753246"]
[WhiteElo "2582"]
[BlackElo "2459"]
[Result "1-0"]
[Round "04"]
[TimeControl "180+1"]
[Date "2022.11.08"]
[WhiteClock "0:00:37"]
[BlackClock "0:00:09"]

1. b3 {[%clk 0:03:00]}  a5 {[%clk 0:02:59]} 2. Bb2 {[%clk 0:02:58]}  a4 {[%clk 0:02:58]} 3. g3 {[%clk 0:02:59]}  e6 {[%clk 0:02:58]} 4. Bg2 {[%clk 0:02:59]}  Nf6 {[%clk 0:02:58]} 5. Nf3 {[%clk 0:02:56]}  d5 {[%clk 0:02:58]} 6. O-O {[%clk 0:02:55]}  Be7 {[%clk 0:02:55]} 7. c4 {[%clk 0:02:54]}  axb3 {[%clk 0:02:54]} 8. axb3 {[%clk 0:02:55]}  Rxa1 {[%clk 0:02:54]} 9. Bxa1 {[%clk 0:02:56]}  O-O {[%clk 0:02:54]} 10. d3 {[%clk 0:02:55]}  c6 {[%clk 0:02:54]} 11. Nbd2 {[%clk 0:02:55]}  Nbd7 {[%clk 0:02:54]} 12. Bc3 {[%clk 0:02:50]}  b6 {[%clk 0:02:54]} 13. Qa1 {[%clk 0:02:50]}  Bb7 {[%clk 0:02:53]} 14. Qb2 {[%clk 0:02:49]}  Re8 {[%clk 0:02:47]} 15. e3 {[%clk 0:02:48]}  Bf8 {[%clk 0:02:46]} 16. h3 {[%clk 0:02:48]}  c5 {[%clk 0:02:42]} 17. Rd1 {[%clk 0:02:43]}  Qb8 {[%clk 0:02:37]} 18. Ne5 {[%clk 0:02:35]}  Rd8 {[%clk 0:02:35]} 19. Ndf3 {[%clk 0:02:33]}  Qc8 {[%clk 0:02:23]} 20. Nxd7 {[%clk 0:02:22]}  Nxd7 {[%clk 0:02:24]} 21. h4 {[%clk 0:02:06]}  h6 {[%clk 0:02:23]} 22. h5 {[%clk 0:02:05]}  Bc6 {[%clk 0:02:11]} 23. cxd5 {[%clk 0:01:22]}  Bxd5 {[%clk 0:02:12]} 24. b4 {[%clk 0:01:21]}  Qb7 {[%clk 0:02:02]} 25. e4 {[%clk 0:01:16]}  cxb4 {[%clk 0:02:00]} 26. Bxb4 {[%clk 0:01:16]}  Bxb4 {[%clk 0:01:54]} 27. exd5 {[%clk 0:01:16]}  Be7 {[%clk 0:01:39]} 28. dxe6 {[%clk 0:01:15]}  fxe6 {[%clk 0:01:39]} 29. Nd4 {[%clk 0:01:07]}  Qa6 {[%clk 0:00:25]} 30. Nxe6 {[%clk 0:01:03]}  Bf6 {[%clk 0:00:25]} 31. Qb3 {[%clk 0:00:59]}  Kh8 {[%clk 0:00:17]} 32. Nxd8 {[%clk 0:00:55]}  Bxd8 {[%clk 0:00:18]} 33. Qd5 {[%clk 0:00:51]}  Qc8 {[%clk 0:00:15]} 34. Qf5 {[%clk 0:00:43]}  Qc7 {[%clk 0:00:11]} 35. Re1 {[%clk 0:00:38]}  Nf6 {[%clk 0:00:10]} 36. Re8+ {[%clk 0:00:36]}  Nxe8 {[%clk 0:00:09]} 37. Qf8+ {[%clk 0:00:36]}  Kh7 {[%clk 0:00:10]} 38. Be4+ {[%clk 0:00:37]}  g6 {[%clk 0:00:09]} 39. hxg6# {[%clk 0:00:37]} 1-0


[Site "https://www.chess.com"]

[Event "Titled Tuesday Blitz November 08 Late 2022"]
[White "Kaganskiy, Gleb"]
[Black "Ali Abdullahi, Farah"]
[WhiteFideId "4132025"]
[BlackFideId "16100212"]
[WhiteElo "2165"]
[BlackElo "2254"]
[Result "0-1"]
[Round "04"]
[TimeControl "180+1"]
[Date "2022.11.09"]
[WhiteClock "0:02:03"]
[BlackClock "0:02:15"]

1. e4 {[%clk 0:03:00]}  e6 {[%clk 0:02:59]} 2. d4 {[%clk 0:03:00]}  d5 {[%clk 0:02:59]} 3. Nd2 {[%clk 0:03:00]}  Nf6 {[%clk 0:02:59]} 4. e5 {[%clk 0:03:01]}  Nfd7 {[%clk 0:02:59]} 5. c3 {[%clk 0:03:01]}  c5 {[%clk 0:03:00]} 6. Bd3 {[%clk 0:03:01]}  Nc6 {[%clk 0:03:00]} 7. Ne2 {[%clk 0:03:00]}  cxd4 {[%clk 0:02:57]} 8. cxd4 {[%clk 0:03:01]}  f6 {[%clk 0:02:58]} 9. Nf3 {[%clk 0:02:59]}  fxe5 {[%clk 0:02:52]} 10. dxe5 {[%clk 0:02:53]}  Ncxe5 {[%clk 0:02:48]} 11. Nxe5 {[%clk 0:02:52]}  Nxe5 {[%clk 0:02:49]} 12. O-O {[%clk 0:02:45]}  Nxd3 {[%clk 0:02:43]} 13. Qxd3 {[%clk 0:02:45]}  Bd6 {[%clk 0:02:40]} 14. Bf4 {[%clk 0:02:44]}  O-O {[%clk 0:02:39]} 15. Bxd6 {[%clk 0:02:41]}  Qxd6 {[%clk 0:02:40]} 16. Rac1 {[%clk 0:02:38]}  Bd7 {[%clk 0:02:36]} 17. Ng3 {[%clk 0:02:31]}  a6 {[%clk 0:02:34]} 18. Nh5 {[%clk 0:02:30]}  Bb5 {[%clk 0:02:27]} 19. Qd4 {[%clk 0:02:19]}  e5 {[%clk 0:02:23]} 20. Qg4 {[%clk 0:02:19]}  Qg6 {[%clk 0:02:22]} 21. Qxg6 {[%clk 0:02:03]}  hxg6 {[%clk 0:02:22]} 22. Nxg7 {[%clk 0:02:04]}  Kxg7 {[%clk 0:02:15]} 23. Rc7+ {[%clk 0:02:05]}  Rf7 {[%clk 0:02:15]} 24. Rfc1 {[%clk 0:02:03]}  Bc6 {[%clk 0:02:15]} 25. Rxf7+ {[%clk 0:02:02]}  Kxf7 {[%clk 0:02:16]} 26. g3 {[%clk 0:02:02]}  e4 {[%clk 0:02:15]} 27. h4 {[%clk 0:02:03]}  Ke6 {[%clk 0:02:15]} 0-1


[Site "https://www.chess.com"]

[Event "Titled Tuesday Blitz November 08 Late 2022"]
[White "Kanakaris, Georgios"]
[Black "Polster, Christian"]
[WhiteFideId "4209460"]
[BlackFideId "12965081"]
[WhiteElo "2291"]
[BlackElo "2209"]
[Result "1-0"]
[Round "04"]
[TimeControl "180+1"]
[Date "2022.11.09"]
[WhiteClock "0:00:18"]
[BlackClock "0:00:03"]

1. d4 {[%clk 0:03:00]}  f5 {[%clk 0:02:59]} 2. e4 {[%clk 0:03:00]}  fxe4 {[%clk 0:02:57]} 3. Nc3 {[%clk 0:03:01]}  Nf6 {[%clk 0:02:55]} 4. Bg5 {[%clk 0:03:01]}  e6 {[%clk 0:02:42]} 5. Nxe4 {[%clk 0:02:56]}  Be7 {[%clk 0:02:42]} 6. Bxf6 {[%clk 0:02:49]}  Bxf6 {[%clk 0:02:42]} 7. Nf3 {[%clk 0:02:50]}  O-O {[%clk 0:02:37]} 8. Bd3 {[%clk 0:02:49]}  Nc6 {[%clk 0:02:28]} 9. c3 {[%clk 0:02:48]}  d5 {[%clk 0:02:20]} 10. Nxf6+ {[%clk 0:02:40]}  Qxf6 {[%clk 0:02:15]} 11. Qe2 {[%clk 0:02:41]}  Re8 {[%clk 0:02:11]} 12. Bb5 {[%clk 0:02:37]}  Bd7 {[%clk 0:02:03]} 13. Bxc6 {[%clk 0:02:34]}  Bxc6 {[%clk 0:02:01]} 14. O-O {[%clk 0:02:34]}  a6 {[%clk 0:01:49]} 15. a4 {[%clk 0:02:25]}  a5 {[%clk 0:01:46]} 16. Ne5 {[%clk 0:02:25]}  Re7 {[%clk 0:01:40]} 17. f4 {[%clk 0:02:10]}  Be8 {[%clk 0:01:37]} 18. b3 {[%clk 0:02:09]}  Bg6 {[%clk 0:01:34]} 19. Nxg6 {[%clk 0:02:09]}  Qxg6 {[%clk 0:01:30]} 20. Rae1 {[%clk 0:02:03]}  Rf8 {[%clk 0:01:19]} 21. Rf2 {[%clk 0:01:56]}  Rf5 {[%clk 0:01:10]} 22. Qb5 {[%clk 0:01:51]}  b6 {[%clk 0:01:03]} 23. Qc6 {[%clk 0:01:50]}  Qe8 {[%clk 0:00:59]} 24. Qxe8+ {[%clk 0:01:36]}  Rxe8 {[%clk 0:01:00]} 25. g3 {[%clk 0:01:34]}  h5 {[%clk 0:00:49]} 26. b4 {[%clk 0:01:24]}  axb4 {[%clk 0:00:16]} 27. cxb4 {[%clk 0:01:25]}  Kf7 {[%clk 0:00:14]} 28. Rc2 {[%clk 0:01:23]}  Ra8 {[%clk 0:00:11]} 29. Rxc7+ {[%clk 0:01:22]}  Kf6 {[%clk 0:00:11]} 30. Rc6 {[%clk 0:01:20]}  Rxa4 {[%clk 0:00:10]} 31. Rxb6 {[%clk 0:01:16]}  g5 {[%clk 0:00:08]} 32. Rbxe6+ {[%clk 0:01:13]}  Kf7 {[%clk 0:00:07]} 33. Re7+ {[%clk 0:01:12]}  Kf8 {[%clk 0:00:07]} 34. R7e5 {[%clk 0:01:10]}  Rxe5 {[%clk 0:00:07]} 35. Rxe5 {[%clk 0:00:59]}  gxf4 {[%clk 0:00:05]} 36. gxf4 {[%clk 0:00:42]}  Rxb4 {[%clk 0:00:05]} 37. Rxd5 {[%clk 0:00:42]}  Kf7 {[%clk 0:00:05]} 38. Kg2 {[%clk 0:00:39]}  Ke6 {[%clk 0:00:04]} 39. Re5+ {[%clk 0:00:38]}  Kf6 {[%clk 0:00:04]} 40. Re4 {[%clk 0:00:21]}  Kf5 {[%clk 0:00:03]} 41. Kf3 {[%clk 0:00:21]}  Rb3+ {[%clk 0:00:03]} 42. Re3 {[%clk 0:00:21]}  Rb2 {[%clk 0:00:03]} 43. Re5+ {[%clk 0:00:21]}  Kf6 {[%clk 0:00:03]} 44. Rxh5 {[%clk 0:00:21]}  Rd2 {[%clk 0:00:03]} 45. Ke4 {[%clk 0:00:20]}  Re2+ {[%clk 0:00:02]} 46. Kd5 {[%clk 0:00:20]}  Rf2 {[%clk 0:00:03]} 47. f5 {[%clk 0:00:19]}  Rf1 {[%clk 0:00:02]} 48. Kd6 {[%clk 0:00:19]}  Rd1 {[%clk 0:00:01]} 49. d5 {[%clk 0:00:18]}  Rd2 {[%clk 0:00:02]} 50. Kc6 {[%clk 0:00:18]}  Rc2+ {[%clk 0:00:02]} 51. Kd7 {[%clk 0:00:18]}  Rd2 {[%clk 0:00:02]} 52. d6 {[%clk 0:00:18]}  Ke5 {[%clk 0:00:02]} 53. f6+ {[%clk 0:00:17]}  Kxf6 {[%clk 0:00:02]} 54. Kc7 {[%clk 0:00:17]}  Ke6 {[%clk 0:00:02]} 55. Rh6+ {[%clk 0:00:17]}  Ke5 {[%clk 0:00:02]} 56. d7 {[%clk 0:00:17]}  Rc2+ {[%clk 0:00:03]} 57. Rc6 {[%clk 0:00:17]}  Rd2 {[%clk 0:00:02]} 58. d8=Q {[%clk 0:00:17]}  Rxd8 {[%clk 0:00:03]} 59. Kxd8 {[%clk 0:00:18]}  Kd5 {[%clk 0:00:03]} 60. Rg6 {[%clk 0:00:18]} 1-0


[Site "https://www.chess.com"]